Cogmind - Beta 13 @@@ ROGUE MODE // 2024.05.24 @ 08:33:24 Player: Erik The Viking Result: Destroyed by S-10 Pest with Light Assault Rifle Performance ------------- Evolutions (1) 500 Regions Visited (2) 400 Robots Destroyed (18) 90 Value Destroyed (270) 270 Prototype IDs (2) 40 Alien Tech Used (0) 0 Bonus (0) 0 TOTAL SCORE: 1300 Bonus ------- None Cogmind --------- Core Integrity 0/400 Matter 111/300 Energy 51/100 System Corruption 0% Temperature Cool (0) Movement Core (50) Location -9/Materials Parts ------- > --- POWER (1) -------- (None) > --- PROPULSION (2) --- (None) > --- UTILITY (4) ------ Machine Analyzer Signal Interpreter Hacking Suite Hacking Suite > --- WEAPON (2) ------- Light Assault Rifle > --- INVENTORY (5) ---- (None) Peak State ------------ > --- POWER ------------ Ion Engine > --- PROPULSION ------- Hover Unit Backup Propulsion I > --- UTILITY ---------- Hardened Medium Armor Plating Hardened Medium Armor Plating Hardened Medium Armor Plating Hardened Medium Armor Plating > --- WEAPON ----------- Light Cannon Light Cannon > --- INVENTORY -------- Machine Analyzer Signal Interpreter Hacking Suite Hacking Suite [Rating: 18] Favorites ----------- Power Ion Engine Engine Ion Engine Propulsion Backup Propulsion I Treads Light Treads Hover Unit Backup Propulsion I Flight Unit Flight Unit Utility Backup Plating I Processor Signal Interpreter Hackware Hacking Suite Protection Backup Plating I Weapon Light Cannon Energy Gun EM Pulse Gun Ballistic Gun Assault Rifle Ballistic Cannon Light Cannon Special Melee Weapon Datajack Build | -11 -10 -9 ------- Run | Yrd Mat Mat Slots Evolved 2 | . . 2 Power . | . . . Propulsion . | . . . Utility 2 | . . 2 Weapon . | . . . Parts Attached 28 | 6 9 13 Power 2 | 1 1 . Engine 2 | 1 1 . Core . | . . . Reactor . | . . . Propulsion 5 | 2 1 2 Treads 2 | 2 . . Leg . | . . . Wheel . | . . . Hover 1 | . 1 . Flight 2 | . . 2 Utility 9 | . 1 8 Device . | . . . Storage . | . . . Processor 2 | . . 2 Hackware 2 | . . 2 Protection 5 | . 1 4 Artifact . | . . . Weapon 12 | 3 6 3 Energy Gun 1 | 1 . . Energy Cannon . | . . . Ballistic Gun 6 | 2 2 2 Ballistic Cannon 3 | . 3 . Launcher . | . . . Special Weapon . | . . . Impact Weapon . | . . . Slashing Weapon . | . . . Piercing Weapon . | . . . Special Melee Weapon 2 | . 1 1 Unidentified Prototypes . | . . . Parts Lost 11 | . . 11 Power 1 | . . 1 Propulsion 4 | . . 4 Utility 4 | . . 4 Weapon 2 | . . 2 Highest Loss Streak 10 | . . 10 To Critical Strikes . | . . . Average Slot Usage (%) 91 | . 95 70 Engine 12 | . 14 7 Treads 2 | . 3 . Hover 21 | . 24 10 Protection 25 | . 24 29 Ballistic Gun 7 | . 8 1 Ballistic Cannon 17 | . 18 15 Naked Turns 2 | . 1 1 Heaviest Build 43 | 9 15 43 Greatest Support 40 | 40 40 12 Greatest Overweight (x) 13 | . 1 13 Average Overweight (x) . | . . 1 Largest Inventory Capacity 5 | 5 5 5 Average Capacity 5 | 5 5 5 Most Carried 5 | 3 5 5 Average Carried 4 | 2 4 4 Final Capacity 5 | 5 5 5 Final Carried 5 | 1 5 . Class Distribution -------------------- 100% | Mutant Dominant Class ---------------- Mutant | -10/Materials Mutant | -9/Materials Resources | -11 -10 -9 ----------- Run | Yrd Mat Mat Matter Collected 739 | 124 454 161 Remotely . | . . . Salvage Created 420 | . 392 28 Parts 36 | . 32 4 Haulers Intercepted 2 | . 2 . Recyclers Shooed . | . . . Parts Field Recycled . | . . . Retrieved Matter . | . . . Parts Self-Destructed . | . . . Prevented . | . . . Kills | -11 -10 -9 ------- Run | Yrd Mat Mat Combat Hostiles Destroyed 8 | . 5 3 Guns 3 | . 3 . Cannons 5 | . 2 3 Classes Destroyed 6 | . 6 . Hauler 2 | . 2 . Recycler 2 | . 2 . Operator 4 | . 4 . Watcher 2 | . 2 . Swarmer 6 | . 3 3 Grunt 2 | . 2 . Best Kill Streak 7 | . 7 2 Combat Bots Only 3 | . 3 2 Max Kills in Single Turn 2 | . 2 1 Gunslinging . | . . . Exploded . | . . . Melee . | . . . Uniques/NPCs Destroyed . | . . . Combat | -11 -10 -9 -------- Run | Yrd Mat Mat Hostile Shots Fired 228 | . 41 187 Missed 70 | . 17 53 Damage Taken 1577 | . 216 1361 Core 419 | . 19 400 Absorbed by Shields . | . . . Core Remaining (%) 96 | 100 92 . Volleys Fired 73 | . 53 20 Largest 2 | . 2 2 Hottest 70 | . 70 70 Shots Fired 138 | . 100 38 Gun 66 | . 56 10 Cannon 72 | . 44 28 Launcher . | . . . Special . | . . . Kinetic 138 | . 100 38 Thermal . | . . . Explosive . | . . . Electromagnetic . | . . . Robot Hit Streak 7 | . 7 3 Robot Miss Streak 12 | . 6 12 Penetration Max . | . . . Secondary Targets . | . . . Shots Hit Robots 65 | . 54 11 Core Hits 22 | . 18 4 Critical Kills . | . . . Critical Parts Destroyed . | . . . Critical Strikes 2 | . 2 . Blast 2 | . 2 . Melee Attacks 2 | . 1 1 Impact . | . . . Slashing . | . . . Piercing . | . . . Sneak Attacks 1 | . 1 . Combat Hostiles . | . . . Follow-up Attacks . | . . . Damage Inflicted 893 | . 763 130 Guns 424 | . 396 28 Cannons 469 | . 367 102 Explosions . | . . . Melee . | . . . Ramming . | . . . Kinetic 893 | . 763 130 Thermal . | . . . Explosive . | . . . Electromagnetic . | . . . Impact . | . . . Slashing . | . . . Piercing . | . . . Highest Corruption . | . . . Average Corruption . | . . . Corruption Purged . | . . . Corruption Blocked . | . . . Overload Shots . | . . . Overflow Damage 18 | . 10 8 Projectiles 18 | . 10 8 Explosions . | . . . Melee . | . . . Knockbacks 6 | . 5 1 Impact . | . . . Kinetic 6 | . 5 1 Secondary . | . . . Self-Inflicted Damage . | . . . Shots . | . . . Rammed . | . . . Targets Rammed . | . . . Kicked . | . . . Crushed . | . . . Highest Temperature 551 | . 153 551 Average Temperature 197 | . 41 340 Received Heat Transfer 219 | . 24 195 Effects 23 | . . 23 Shutdowns 4 | . . 4 Energy Bleed 4 | . . 4 Interference 1 | . . 1 Matter Decay 3 | . . 3 Short Circuit 1 | . . 1 Damage (minor) 1 | . . 1 Damage (major) 6 | . . 6 Damage (core) 3 | . . 3 Siege Activations . | . . . Robots Corrupted . | . . . Combat Hostiles . | . . . Parts Fried . | . . . Impact Corruptions . | . . . Robots Melted . | . . . Combat Hostiles . | . . . Parts Melted . | . . . Heat Transferred . | . . . Parts Sabotaged . | . . . Parts Stolen . | . . . Parts Stripped . | . . . Power Chain Reactions . | . . . Alert | -11 -10 -9 ------- Run | Yrd Mat Mat Peak Influence 210 | . 210 98 Initial 18 | . . 18 Average 60 | . 67 48 Maximum Alert Level 1 | . 1 . Low Security (%) 97 | 100 96 100 Level 1 2 | . 3 . Level 2 . | . . . Level 3 . | . . . Level 4 . | . . . Level 5 . | . . . High Security . | . . . Max Security . | . . . Squads Dispatched 2 | . 1 1 Investigation . | . . . Extermination . | . . . Reinforcement 2 | . 1 1 Assault . | . . . Garrison . | . . . Intercept . | . . . Searches Triggered . | . . . Construction Impeded . | . . . Haulers Reinforced . | . . . Active Scanning Responses . | . . . Cargo Convoy Interrupts . | . . . Stealth | -11 -10 -9 --------- Run | Yrd Mat Mat Distress Signals 4 | . 2 2 Communications Jammed . | . . . Distress Signals . | . . . Times Spotted 26 | . 15 11 Peak Tracking Total 8 | . 5 8 Tactical Retreats 1 | . . 1 Traps | -11 -10 -9 ------- Run | Yrd Mat Mat Traps Triggered . | . . . Indirectly . | . . . Trap Hack Attempts . | . . . Triggered . | . . . Disarmed . | . . . Reprogrammed . | . . . Reused . | . . . Traps Extracted . | . . . Installed . | . . . Triggered . | . . . Machines | -11 -10 -9 ---------- Run | Yrd Mat Mat Machines Disabled 3 | . . 3 Max in Single Turn 1 | . . 1 Machines Repaired . | . . . Machines Dismantled . | . . . Machines Sabotaged . | . . . Overloaded Fab Kills . | . . . Hacking | -11 -10 -9 --------- Run | Yrd Mat Mat Machines Accessed 4 | . 4 . Terminals 3 | . 3 . Fabricators . | . . . Repair Stations 1 | . 1 . Recycling Units . | . . . Scanalyzers . | . . . Garrison Access . | . . . Total Hacks 13 | . 13 . Successful 7 | . 7 . Failed 6 | . 6 . Catastrophic . | . . . Database Lockouts . | . . . Manual . | . . . Terminals 10 | . 10 . Fabricators . | . . . Repair Stations 3 | . 3 . Recycling Units . | . . . Scanalyzers . | . . . Garrison Access . | . . . Terminal Hacks 6 | . 6 . Robot Analysis 1 | . 1 . Prototype ID Bank 1 | . 1 . Locate Traps 1 | . 1 . Dispatch Records 1 | . 1 . Zone Layout 2 | . 2 . Fabricator Hacks . | . . . Repair Station Hacks 1 | . 1 . Refit 1 | . 1 . Recycling Unit Hacks . | . . . Scanalyzer . | . . . Garrison Access Hacks . | . . . Unauthorized Hacks . | . . . Terminals . | . . . Fabricators . | . . . Repair Stations . | . . . Recycling Units . | . . . Scanalyzers . | . . . Garrison Access . | . . . Data Cores Recovered 2 | . 2 . Used . | . . . Hacking Detections 4 | . 4 . Full Trace Events . | . . . Feedback Events . | . . . Feedback Blocked . | . . . Robot Schematics Acquired . | . . . Robots Built . | . . . Authchips . | . . . Time . | . . . Total Robot Build Rating . | . . . Part Schematics Acquired . | . . . Parts Built . | . . . Authchips . | . . . Time . | . . . Total Part Build Rating . | . . . Parts Repaired . | . . . Time . | . . . Parts Recycled . | . . . Recycled Matter . | . . . Retrieved Matter . | . . . Retrieved Components . | . . . Parts Scanalyzed . | . . . Part Schematics Acquired . | . . . Parts Damaged . | . . . Bothacking | -11 -10 -9 ------------ Run | Yrd Mat Mat Used RIF Installer . | . . . Robots Hacked 2 | . 1 1 Non-combat 1 | . 1 . Combat 1 | . . 1 Robot Hacks Applied 2 | . 1 1 parse_system 1 | . . 1 find_recycling 1 | . 1 . Relay Couplers Released . | . . . Fabnet Peak Effective % . | . . . Robots Rewired . | . . . Allies Hacked . | . . . Hacks Repelled . | . . . Allies | -11 -10 -9 -------- Run | Yrd Mat Mat Total Allies . | . . . Largest Group . | . . . Highest-Rated Group . | . . . Highest-Rated Ally . | . . . Total Orders . | . . . Ally Attacks . | . . . Total Damage . | . . . Kills . | . . . Allies Corrupted . | . . . Allies Melted . | . . . Intel | -11 -10 -9 ------- Run | Yrd Mat Mat Robot Analysis Total 1 | . 1 . Derelict Logs Recovered . | . . . Drone Launches . | . . . Drone Recoveries . | . . . Exploration | -11 -10 -9 ------------- Run | Yrd Mat Mat Turns Passed 1007 | 61 760 186 Spaces Moved 574 | 35 464 75 Core 13 | 6 1 6 Treads 69 | 29 40 . Legs . | . . . Wheels . | . . . Hover 446 | . 423 23 Flight 46 | . . 46 Fastest Speed 37 | 50 50 37 Average Speed 119 | 141 116 125 Slowest Speed 700 | 160 160 700 Overloaded Moves . | . . . Propulsion Burnouts . | . . . Robots Hopped . | . . . Cave-ins Triggered . | . . . Exploration Rate (%) 20 | 4 49 9 Regions Visited 2 Branch Regions . Pre-discovered Areas . | . . . Known Exits Taken . | . . . Unknown Exits Taken 2 | 1 1 . Scrap Searched . | . . . Spaces Dug . | . . . Terrain Destroyed . | . . . Melee . | . . . Projectile . | . . . AOE . | . . . Terrain Rammed . | . . . Walls Destroyed . | . . . Machines Disabled . | . . . Actions | -11 -10 -9 --------- Run | Yrd Mat Mat Total 769 | 47 590 132 Wait 44 | . 35 9 Move 572 | 34 463 75 Hop . | . . . Pick Up 27 | 6 12 9 Fast Attach . | . . . Attach 23 | 6 5 12 Detach 5 | 1 4 . Swap 5 | . 4 1 Drop 18 | . 13 5 Fire 73 | . 53 20 Melee 2 | . 1 1 Ram . | . . . Kick . | . . . Crush . | . . . Escape Stasis . | . . . Rewire . | . . . Trap . | . . . Miscellaneous . | . . . Route ------- -11/Scrapyard -10/Materials (discovered 2 exits: [*Mat] / [*Min]) -9/Materials History --------- Turn | Location | Event 2 | -11/Scrapyard | Met Revision 17 10 | -11/Scrapyard | Discovered new exit (range 15) 62 | -11/Scrapyard | Entered Materials 322 | -10/Materials | Build established: Mutant 370 | -10/Materials | Discovered new exit (range 7) 408 | -10/Materials | Discovered new exit (range 10) 822 | -10/Materials | Entered another Materials area 822 | -9/Materials | Evolved 2 slots: Utility x2 953 | -9/Materials | Core integrity fell below 50% 984 | -9/Materials | Core integrity fell below 20% 1008 | -9/Materials | Destroyed by S-10 Pest with Light Assault Rifle Last Messages --------------- R-06 Scavenger collects Flight Unit. Lgt. Cannon destroyed. Acquired Flight Unit. K-01 Serf collects debris. Acquired Flight Unit. K-01 Serf collects debris. Acquired Lgt. Assault Rifle. Acquired 12 matter. Acquired 4 matter. R-06 Scavenger collects Lgt. Ion Engine. Acquired 3 matter. Acquired 2 matter. K-01 Serf collects debris. Flight Unit destroyed. K-01 Serf collects debris. Acquired 108 matter. Acquired 17 matter. K-01 Serf collects debris. Flight Unit destroyed. K-01 Serf collects debris. Map ----- +----------------------------------------------------+ | | | | | | | | | | | | | | | | | | | | | ?????????????????????????????????????????????????? | | ?????????????????????????????????????????????????? | | ?????????????????????????????????????????????????? | | ?????????????????????????????????????????????????? | | ?????????????????????????????????????????????????? | | ?????????????????????????????????????????????????? | | ?????????????????????????????????????????????????? | | ?????????????????????????????????????????????????? | | ?????????????????????????????????????????????????? | | ??????????????????????#####??????????????????????? | | ??????????????????????#"""#??????????????????????? | | #####################?#"R"#??????????????????????? | | # ###" "###############????????? | | # ^ % % ???????? | | # % k ???????? | | # ^ ^ g@ % ???????? | | ## ####### " " k""s #??????????? | | ?# ######## """ """ "" #??????????? | | ?#!!!! # # """r """ """ #??????????? | | ?#!!!! # # """ """ """ """ #??????????? | | ?######## """ + """ """ """ Y" ???????????? | | ????????# """ # g """ ??""??"""??? | | ????????# """ # #?"T??"""??? | | ????????# # #?""??"""??? | | ????????############# ######## #??????????? | | ????????????????????# #????????#+###??????????? | | ????????????????????# #?"""???????????????????? | | ????????????????????# #?"""???????????????????? | | ????????????????????# #?"""???????????????????? | | ????????????????????# #???????????????????????? | | ????????????????????# #?"""???????????????????? | | ????????????????????# #?"""???????????????????? | | ????????????????????+ #?"""???????????????????? | | ????????????????????# #???????????????????????? | | ????????????????????# #???????????????????????? | | ???????????????????? #???????????????????????? | | ???????????????????? ???????????????????????? | | ????????????????????? ????????????????????????? | | ?????????????????????????????????????????????????? | | ?????????????????????????????????????????????????? | +----------------------------------------------------+ Best States ------------- Heat Dissipation 28 Energy Generation 10 Energy Capacity 250 Matter Stores 194 Matter Capacity 300 Sight Range 16 Terrain Scan Density 10 Armor Coverage 900 Evasion (%) 62 Recoil Reduction 2 Offensive Hacking 20 Item Schematics ----------------- None Robot Schematics ------------------ None Fabricated ------------ Nothing Alien Tech Used ----------------- None Achievements -------------- None Challenges ------------ None Game ------ Seed BackupArmageddonScythe Manual? 0 Play Time 00:20:06 Cumulative 8.2 hours Start 2024.05.24 @ 08:14:42 End 2024.05.24 @ 08:33:24 Sessions 1 Manual Loads 0 Difficulty Rogue Special Mode None Game No. 12 Rogue 12 Adventurer 0 Explorer 0 Win Type - Total 0 Types 0/0/0/0/0/0/0/0/0 Lore% 7 Gallery% 14 Achievement% 12 Wizard Run 0 Options --------- Layout 2 ASCII 0 Keyboard 0 Movement Mouse Keybinds 0 Fullscreen 0 Font 28/Proggy Map View 65x48 Zoom Use 0% Tactical HUD 0 Map Filters NONE Filters NONE Steam 1 RUN: 2b5a4980-7558-43d8-87df-b920f1a97099